bitfinex/quotes_BTCUSD_20250326
["timestamp","ask_amount","ask_price","bid_price","bid_amount"]
[1743008286567,0.02841633,86669.0,86668.0,36.3791817]
[1743008287781,0.02341633,86669.0,86668.0,36.3791817]
[1743008288543,0.01841633,86669.0,86668.0,36.3791817]
[1743008288814,0.02341633,86669.0,86668.0,36.3791817]
[1743008289086,0.01841633,86669.0,86668.0,36.3791817]
[1743008289627,0.02841633,86669.0,86668.0,36.3791817]
[1743008290149,0.02341633,86669.0,86668.0,36.3791817]
[1743008290394,0.02841633,86669.0,86668.0,36.3791817]
[1743008292718,0.0103392,86669.0,86668.0,36.3791817]
[1743008295960,0.02841476,86669.0,86668.0,36.3791817]
[1743008296207,0.32841476,86669.0,86668.0,36.3791817]
[1743008296927,0.32341476,86669.0,86668.0,36.3791817]
[1743008297171,0.32341476,86669.0,86668.0,36.2523817]
[1743008297405,0.32841476,86669.0,86668.0,36.2523817]
[1743008297610,2.60338176,86669.0,86668.0,36.2523817]
[1743008297845,1.86720376,86669.0,86668.0,36.2523817]
[1743008298417,1.86220376,86669.0,86668.0,36.2523817]
[1743008298661,1.86720376,86669.0,86668.0,36.2523817]
[1743008298871,1.80836976,86669.0,86668.0,36.2523817]
[1743008299530,1.57760076,86669.0,86668.0,36.2523817]
[1743008299727,0.48982276,86669.0,86668.0,36.2523817]
[1743008300137,0.32341476,86669.0,86668.0,36.2523817]
[1743008300303,0.77158776,86669.0,86668.0,36.2523817]
[1743008300505,0.68045776,86669.0,86668.0,36.2523817]
[1743008300714,0.50622276,86669.0,86668.0,36.2523817]
[1743008300924,0.32841476,86669.0,86668.0,36.2523817]
[1743008301945,0.02469295,86669.0,86668.0,36.2523817]
[1743008302166,0.005,86669.0,86668.0,36.2523817]
[1743008302939,0.3,86689.0,86668.0,36.2523817]
[1743008303171,0.009,86669.0,86668.0,36.2523817]
[1743008303659,0.007,86669.0,86668.0,36.39522255]
[1743008304094,0.01,86669.0,86668.0,36.39522255]
[1743008304887,0.00775477,86669.0,86668.0,36.52878255]
[1743008305114,0.003,86669.0,86668.0,36.52878255]
[1743008305525,0.005,86669.0,86668.0,36.52878255]
[1743008305973,0.002,86669.0,86668.0,36.52878255]
[1743008306228,0.10255692,86703.0,86670.0,0.23076]
[1743008306408,0.10255692,86703.0,86669.0,0.10767885]
[1743008306409,0.0180736,86686.0,86673.0,0.0816]
[1743008306681,0.10255692,86703.0,86674.0,0.01454085]
[1743008306829,0.10255692,86703.0,86674.0,0.01254085]
[1743008307032,0.01807169,86688.0,86674.0,0.01254085]
[1743008307245,0.01807169,86688.0,86675.0,0.1299]
[1743008307437,0.01807169,86688.0,86676.0,0.0815]
[1743008307599,0.01807169,86688.0,86677.0,0.1334]
[1743008307812,0.005,86686.0,86677.0,0.1334]
[1743008308477,0.005,86686.0,86678.0,0.13336]
[1743008308927,0.005,86686.0,86677.0,0.01454085]
[1743008309576,0.01807169,86688.0,86677.0,0.01454085]
[1743008309806,0.004,86686.0,86677.0,0.01454085]
[1743008310047,0.02307169,86688.0,86677.0,0.01454085]
[1743008310304,0.01807169,86688.0,86676.0,0.0815]
[1743008310533,0.304,86686.0,86676.0,0.0815]
[1743008310763,0.3,86684.0,86676.0,0.0815]
[1743008310988,0.3,86682.0,86676.0,0.0815]
[1743008311218,0.3,86680.0,86676.0,0.0815]
[1743008312609,0.005,86688.0,86676.0,0.0815]
[1743008312849,0.3,86686.0,86676.0,0.0815]
[1743008313073,0.003,86680.0,86676.0,0.0815]
[1743008314966,0.006,86680.0,86676.0,0.0815]
[1743008315945,0.02407345,86680.0,86676.0,0.0815]
[1743008318606,0.3,86678.0,86676.0,0.0815]
[1743008318875,0.3,86678.0,86670.0,0.5994]
[1743008318876,0.3,86676.0,86658.0,0.0791]
[1743008319116,0.305,86674.0,86658.0,0.0791]
[1743008319346,0.3,86672.0,86658.0,0.0791]
[1743008319581,0.3,86670.0,86658.0,0.0791]
[1743008319820,1.088897,86669.0,86658.0,0.0791]
[1743008320069,0.652854,86669.0,86658.0,0.0791]
[1743008320428,0.3,86669.0,86658.0,0.0791]
[1743008320664,0.3180769,86669.0,86658.0,0.0791]
[1743008321699,0.3220769,86669.0,86658.0,0.0791]
[1743008322377,0.3260769,86669.0,86658.0,0.0791]
[1743008322828,0.308,86669.0,86658.0,0.0791]
[1743008323793,0.514954,86669.0,86658.0,0.0791]
[1743008324044,0.309,86669.0,86658.0,0.0791]
[1743008324517,0.305,86669.0,86658.0,0.0791]
[1743008324794,0.26456763,86678.0,86658.0,0.0791]
[1743008324795,0.26456763,86680.0,86658.0,0.0791]
[1743008325025,0.005,86669.0,86658.0,0.0791]
[1743008325735,0.26456763,86680.0,86658.0,0.0791]
[1743008326208,0.26956763,86680.0,86663.0,0.02281748]
[1743008326659,0.27456763,86680.0,86663.0,0.02281748]
[1743008326884,0.3,86679.0,86663.0,0.02281748]
[1743008327110,0.01807491,86678.0,86663.0,0.02281748]
[1743008328021,0.01807491,86678.0,86660.0,0.1326]
[1743008328643,0.01807491,86678.0,86662.0,0.0235298]
[1743008329360,0.02307491,86678.0,86662.0,0.0235298]
[1743008329579,0.02807491,86678.0,86662.0,0.0235298]
[1743008332137,0.02807491,86678.0,86669.0,0.0777]
[1743008332345,0.02807491,86678.0,86670.0,0.0472]
[1743008332977,0.01807491,86678.0,86670.0,0.0472]
[1743008333171,0.02307491,86678.0,86670.0,0.0472]
[1743008333373,0.02807491,86678.0,86670.0,0.0472]
[1743008333956,0.03307491,86678.0,86671.0,0.01454085]
[1743008334135,0.015,86678.0,86672.0,0.0777]
[1743008334583,0.015,86678.0,86671.0,0.01454085]
[1743008334830,0.01,86678.0,86675.0,0.01454085]
[1743008335048,0.01,86678.0,86676.0,0.13244]
[1743008335265,0.015,86678.0,86677.0,0.0759]
[1743008335701,0.0153388,86678.0,86677.0,0.14034085]
[1743008335914,0.0003388,86678.0,86677.0,0.14034085]
[1743008336124,0.0053388,86678.0,86677.0,0.16343715]
[1743008336342,0.0093388,86678.0,86677.0,0.16343715]
[1743008337036,0.0093388,86678.0,86677.0,0.16443715]
[1743008337236,0.0053388,86678.0,86677.0,0.16443715]
[1743008337438,0.0003388,86678.0,86677.0,0.16543715]
[1743008339177,0.26456763,86700.0,86680.0,0.01454085]
[1743008339619,0.26456763,86700.0,86682.0,0.01454085]
[1743008339831,0.01807078,86696.0,86682.0,0.01454085]
[1743008342102,0.01807078,86696.0,86685.0,0.011536]
[1743008342295,0.007,86700.0,86691.0,0.09434085]
[1743008342296,0.004,86700.0,86691.0,0.09434085]
[1743008342495,0.004,86700.0,86693.0,0.01454085]
[1743008342898,0.002,86696.0,86693.0,0.01454085]
[1743008343125,0.3,86709.0,86693.0,0.01454085]
[1743008343343,0.003,86696.0,86695.0,0.02256744]
[1743008343957,0.003,86700.0,86695.0,0.02256744]
[1743008344388,0.003,86696.0,86695.0,0.02256744]
[1743008344590,0.003,86696.0,86695.0,0.02299259]
[1743008344887,0.3,86709.0,86695.0,0.02299259]
[1743008345089,0.3,86709.0,86695.0,0.15495259]
[1743008345297,0.01806864,86696.0,86695.0,0.15495259]
[1743008345520,0.3,86709.0,86695.0,0.15495259]
[1743008345734,0.3,86709.0,86695.0,0.02299259]
[1743008345945,0.02006905,86696.0,86695.0,0.02299259]
[1743008346152,0.3,86724.0,86695.0,0.15507259]
[1743008346376,0.01806899,86699.0,86695.0,0.15507259]
[1743008346603,0.002,86696.0,86695.0,0.15507259]
[1743008347716,0.01806893,86699.0,86695.0,0.15507259]
[1743008349015,0.01806893,86699.0,86695.0,0.00042515]
[1743008349016,0.3,86697.0,86695.0,0.00042515]
[1743008349245,1.273534,86696.0,86695.0,0.00042515]
[1743008349508,1.272534,86696.0,86695.0,0.00042515]
[1743008349746,0.3,86696.0,86695.0,0.00042515]
[1743008350709,0.3,86696.0,86695.0,0.07812515]
[1743008351853,0.305,86696.0,86695.0,0.07812515]
[1743008352292,0.309,86696.0,86695.0,0.07812515]
[1743008355450,0.304,86696.0,86695.0,0.12582515]
[1743008355689,0.303,86696.0,86695.0,0.140366]
[1743008355936,0.305,86696.0,86695.0,0.140366]
[1743008356614,0.303,86696.0,86695.0,0.140366]
[1743008357054,0.305,86696.0,86695.0,0.140366]
[1743008357538,0.32306914,86696.0,86695.0,0.140366]
[1743008358050,0.32006914,86696.0,86695.0,0.140366]
[1743008358252,0.32306914,86696.0,86695.0,0.140366]
[1743008359420,0.02306914,86696.0,86695.0,0.787559]
[1743008359667,0.02306914,86696.0,86695.0,0.556866]
[1743008359911,0.02306914,86696.0,86695.0,0.799093]
[1743008360407,0.02306914,86696.0,86695.0,0.556866]
[1743008360885,0.02306914,86696.0,86695.0,0.787559]
[1743008361313,0.02006914,86696.0,86695.0,0.919319]
[1743008361531,0.02206914,86696.0,86695.0,0.919319]
[1743008361778,0.02206914,86696.0,86695.0,0.688626]
[1743008362240,0.02006914,86696.0,86695.0,0.688626]
[1743008362467,0.01806914,86696.0,86695.0,0.688626]
[1743008362915,0.0003386,86700.0,86696.0,0.01454085]
[1743008363599,0.0003386,86700.0,86695.0,0.54249445]
[1743008363815,0.0003386,86700.0,86696.0,0.13172]
[1743008363816,0.0003386,86697.0,86696.0,0.13172]
[1743008364039,0.0003386,86697.0,86695.0,0.54249445]
[1743008364286,0.0003386,86697.0,86695.0,0.41709445]
[1743008365899,0.02340696,86697.0,86695.0,0.41709445]
[1743008366871,0.02540696,86697.0,86695.0,0.41709445]
[1743008367090,0.02540696,86697.0,86695.0,0.00059445]
[1743008367091,0.02340696,86697.0,86695.0,0.00059445]
[1743008367335,1.460525,86696.0,86695.0,0.00059445]
[1743008367499,1.167132,86696.0,86695.0,0.00059445]
[1743008367737,1.397823,86696.0,86695.0,0.00059445]
[1743008368079,1.414357,86696.0,86695.0,0.00059445]
[1743008368486,1.172132,86696.0,86695.0,0.00059445]
[1743008369738,1.177132,86696.0,86695.0,0.00059445]
[1743008369988,0.315,86696.0,86695.0,0.00059445]
[1743008370203,4.937224,86696.0,86695.0,0.00059445]
[1743008371848,5.167915,86696.0,86695.0,0.00059445]
[1743008372049,4.937224,86696.0,86695.0,0.00059445]
[1743008374111,4.932224,86696.0,86695.0,0.00059445]
[1743008374686,3.702558,86696.0,86695.0,0.00059445]
[1743008375065,3.045287,86696.0,86695.0,0.00059445]
[1743008377047,2.080462,86696.0,86695.0,0.00059445]
[1743008377246,1.962328,86696.0,86695.0,0.00059445]
[1743008377651,1.433222,86696.0,86695.0,0.00059445]
[1743008377871,0.572769,86696.0,86695.0,0.00059445]
[1743008380588,0.853068,86696.0,86695.0,0.00059445]
[1743008380809,0.496706,86696.0,86695.0,0.00059445]
[1743008381042,0.305,86696.0,86695.0,0.00059445]
[1743008385312,0.32307214,86696.0,86695.0,0.00059445]
[1743008387496,2.23165114,86696.0,86695.0,0.00059445]
[1743008387862,2.08612214,86696.0,86695.0,0.00059445]
[1743008388071,1.85306014,86696.0,86695.0,0.00059445]
[1743008388507,1.61430914,86696.0,86695.0,0.00059445]
[1743008392824,1.596237,86696.0,86695.0,0.00059445]
[1743008393284,1.23453,86696.0,86695.0,0.00059445]
[1743008394114,1.187805,86696.0,86695.0,0.00059445]
[1743008394318,0.925721,86696.0,86695.0,0.00059445]
[1743008395222,0.3,86696.0,86695.0,0.00059445]
[1743008395429,0.01,86696.0,86695.0,0.12709445]
[1743008395664,0.01,86696.0,86695.0,0.1416353]
[1743008395896,0.01,86696.0,86695.0,0.3723283]
[1743008396124,0.01,86696.0,86695.0,0.1416353]
[1743008396359,0.01840881,86697.0,86696.0,0.01454085]
[1743008396631,0.01840881,86697.0,86696.0,0.1241]
[1743008397331,0.01840881,86697.0,86696.0,0.1231]
[1743008397566,0.01840881,86697.0,86696.0,0.1211]
[1743008398233,0.01340881,86697.0,86696.0,0.1211]
[1743008399482,0.01540881,86697.0,86696.0,0.1211]
[1743008399617,0.01640881,86697.0,86696.0,0.1211]
[1743008400526,0.01640881,86697.0,86695.0,0.00059445]
[1743008400527,0.01674741,86697.0,86695.0,0.00059445]
[1743008400768,0.3,86696.0,86695.0,0.00059445]
[1743008401225,0.895346,86696.0,86695.0,0.00059445]
[1743008401455,0.3,86696.0,86695.0,0.00059445]
[1743008401695,0.01674741,86697.0,86695.0,0.00059445]
[1743008401910,0.0033386,86697.0,86695.0,0.00059445]
[1743008402367,0.0013386,86697.0,86695.0,0.00059445]
[1743008402585,0.0003386,86697.0,86695.0,0.00059445]
[1743008402807,0.0033386,86697.0,86695.0,0.00059445]
[1743008403090,0.0013386,86697.0,86695.0,0.00059445]
[1743008403323,1.424729,86696.0,86695.0,0.00059445]
[1743008403559,1.124777,86696.0,86695.0,0.00059445]
[1743008405602,1.028977,86696.0,86695.0,0.00059445]
[1743008406044,0.305,86696.0,86695.0,0.00059445]
[1743008406504,0.309,86696.0,86695.0,0.00059445]
[1743008406979,0.305,86696.0,86695.0,0.00059445]
[1743008407426,0.31,86696.0,86695.0,0.00059445]
[1743008409017,0.32807136,86696.0,86695.0,0.00059445]
[1743008410933,1.56576836,86696.0,86695.0,0.00059445]
[1743008412451,1.81299336,86696.0,86695.0,0.00059445]
[1743008412681,2.217222,86696.0,86695.0,0.00059445]
[1743008412924,0.7273,86696.0,86695.0,0.00059445]
[1743008413205,0.863626,86696.0,86695.0,0.00059445]
[1743008413410,0.858626,86696.0,86695.0,0.00059445]
[1743008413861,0.863626,86696.0,86695.0,0.00059445]
[1743008414091,0.858626,86696.0,86695.0,0.00059445]
[1743008414523,0.863626,86696.0,86695.0,0.00059445]
[1743008414753,0.868626,86696.0,86695.0,0.00059445]
[1743008414992,0.863626,86696.0,86695.0,0.00059445]
[1743008415684,0.88169904,86696.0,86695.0,0.00059445]
[1743008415926,0.99543904,86696.0,86695.0,0.00059445]
[1743008416832,1.00043904,86696.0,86695.0,0.00059445]
[1743008417108,1.00543904,86696.0,86695.0,0.00059445]
[1743008418516,0.58813904,86696.0,86695.0,0.00059445]
[1743008420074,0.83036404,86696.0,86695.0,0.00059445]
[1743008420782,0.81883004,86696.0,86695.0,0.00059445]
[1743008421054,0.58313904,86696.0,86695.0,0.00059445]
[1743008421285,0.81383004,86696.0,86695.0,0.00059445]
[1743008421512,0.58813904,86696.0,86695.0,0.00059445]
[1743008421734,0.81883004,86696.0,86695.0,0.00059445]
[1743008422186,0.57813904,86696.0,86695.0,0.00059445]
[1743008422435,0.81383004,86696.0,86695.0,0.00059445]
[1743008422691,0.45101904,86696.0,86695.0,0.00059445]
[1743008422929,0.432946,86696.0,86695.0,0.00059445]
[1743008423168,0.427946,86696.0,86695.0,0.00059445]
[1743008424388,0.01,86696.0,86695.0,0.00059445]
[1743008424670,0.0103386,86696.0,86695.0,0.00059445]
[1743008425422,0.0003386,86696.0,86695.0,0.07609445]
[1743008425913,0.02340851,86696.0,86695.0,0.07609445]
[1743008426426,0.02740851,86696.0,86695.0,0.07609445]
[1743008426665,0.02340851,86696.0,86695.0,0.07609445]
[1743008426900,0.02740851,86696.0,86695.0,0.07609445]
[1743008427365,0.02240851,86696.0,86695.0,0.07609445]
[1743008427838,0.02640851,86696.0,86695.0,0.07609445]
[1743008429758,0.02240851,86696.0,86695.0,0.07609445]
[1743008429992,0.02540851,86696.0,86695.0,0.07609445]
[1743008430457,0.02540851,86696.0,86695.0,0.12499445]
[1743008430692,0.02140851,86696.0,86695.0,0.12499445]
[1743008430925,0.02140851,86696.0,86695.0,0.2718953]
[1743008431141,0.02540851,86696.0,86695.0,0.2718953]
[1743008432056,0.02140851,86696.0,86695.0,0.2718953]
[1743008432304,0.02040851,86696.0,86695.0,0.25735445]
[1743008432561,0.0053386,86696.0,86695.0,0.25735445]
[1743008432798,0.0023386,86696.0,86695.0,0.25735445]
[1743008434137,0.0003386,86696.0,86695.0,0.25735445]
[1743008434369,0.0003386,86700.0,86699.0,0.25675785]
[1743008434507,0.0003386,86700.0,86699.0,0.38525785]
[1743008434938,0.10311063,86711.0,86705.0,0.011533]
[1743008434939,0.3,86710.0,86705.0,0.011533]
[1743008435177,0.3,86710.0,86707.0,0.06024085]
[1743008435508,0.10311063,86711.0,86710.0,0.08984085]
[1743008435729,0.10311063,86711.0,86710.0,0.22212085]
[1743008435965,0.26456763,86730.0,86710.0,0.22212085]
[1743008435966,0.10311063,86727.0,86712.0,0.0753]
[1743008436200,0.10311063,86727.0,86712.0,0.10027351]
[1743008436451,0.3,86726.0,86712.0,0.0753]
[1743008436704,0.01806432,86724.0,86712.0,0.0753]
[1743008438816,0.01806432,86724.0,86717.0,0.0457]
[1743008439356,0.02106432,86724.0,86717.0,0.0457]
[1743008439547,0.02306432,86724.0,86717.0,0.0457]
[1743008440017,0.02106432,86724.0,86717.0,0.0457]
[1743008440237,0.02306432,86724.0,86717.0,0.0457]
[1743008440906,0.02006432,86724.0,86717.0,0.0457]
[1743008441135,2.272188,86723.0,86717.0,0.0457]
[1743008441360,1.285964,86722.0,86717.0,0.0457]
[1743008441645,0.3,86720.0,86717.0,0.0457]
[1743008442565,0.003,86723.0,86717.0,0.0457]
[1743008442785,0.002,86722.0,86717.0,0.0457]
[1743008443218,0.003,86723.0,86717.0,0.0457]
[1743008443665,0.001,86720.0,86717.0,0.0457]
[1743008445199,0.003,86720.0,86717.0,0.0457]
[1743008445438,0.002,86720.0,86717.0,0.0457]
[1743008445830,0.002,86723.0,86717.0,0.0457]
[1743008446212,0.001,86720.0,86717.0,0.0457]
[1743008446919,0.002,86720.0,86717.0,0.0457]
[1743008448275,0.001,86720.0,86717.0,0.0457]
[1743008448739,0.0013388,86720.0,86717.0,0.0457]
[1743008451639,0.000339,86728.0,86727.0,0.38207885]
[1743008451892,0.000339,86728.0,86727.0,0.49633649]
[1743008452120,0.0003394,86756.0,86742.0,0.1306]
[1743008452353,0.0003394,86756.0,86743.0,0.22784085]
[1743008453014,0.0003394,86756.0,86743.0,0.22797174]
[1743008453259,0.0003394,86756.0,86743.0,0.14467174]
[1743008453447,0.0003394,86756.0,86744.0,0.0749]
[1743008453943,0.0003394,86756.0,86745.0,0.59904]
[1743008454131,0.0003394,86756.0,86745.0,0.83339337]
[1743008454869,0.0003394,86756.0,86745.0,0.73092]
[1743008455813,0.0013394,86756.0,86748.0,0.011527]
[1743008456046,0.0013394,86756.0,86750.0,0.06114085]
[1743008456530,0.0023394,86756.0,86754.0,0.02350985]
[1743008456748,0.0003394,86756.0,86755.0,0.0785]
[1743008457207,0.0023394,86756.0,86755.0,0.0785]
[1743008457446,0.0023394,86756.0,86755.0,0.10935592]
[1743008457680,0.0023394,86756.0,86755.0,0.09304085]
[1743008458100,0.0023394,86756.0,86755.0,0.32357485]
[1743008458320,0.0023394,86756.0,86755.0,0.33510085]
[1743008458565,0.0023394,86756.0,86755.0,0.38170085]
[1743008458787,0.0023394,86756.0,86755.0,0.13964085]
[1743008459034,0.0003394,86756.0,86755.0,0.13964085]
[1743008459504,0.0003394,86756.0,86755.0,0.27144085]
[1743008460245,0.0003394,86756.0,86755.0,0.1261]
[1743008460493,0.01805766,86759.0,86755.0,0.25786]
[1743008460956,0.01805766,86759.0,86755.0,0.1261]
[1743008461435,0.3,86757.0,86755.0,0.001]
[1743008461716,1.729579,86756.0,86755.0,0.001]
[1743008462265,0.3,86755.0,86735.0,0.25386]
[1743008462473,0.3,86752.0,86738.0,0.02263381]
[1743008462692,0.3,86750.0,86738.0,0.02263381]
[1743008462967,0.3,86748.0,86735.0,0.1221]
[1743008463217,0.3,86746.0,86735.0,0.1221]
[1743008463406,0.3,86744.0,86735.0,0.14501332]
[1743008463748,0.683646,86744.0,86735.0,0.14501332]
[1743008464395,0.683646,86744.0,86735.0,0.1221]
[1743008465184,0.683646,86744.0,86732.0,0.02310968]
[1743008465923,0.70170658,86744.0,86731.0,0.59884]
[1743008467354,0.70870658,86744.0,86731.0,0.59884]
[1743008470673,0.02506058,86744.0,86731.0,0.59884]
[1743008470915,5.32506058,86744.0,86731.0,0.59884]
[1743008471644,5.32506058,86744.0,86743.0,0.00030019]
[1743008472607,5.307,86744.0,86743.0,0.00030019]
[1743008473980,2.460386,86744.0,86743.0,0.00030019]
[1743008474208,2.197534,86744.0,86743.0,0.00030019]
[1743008474913,1.27925,86744.0,86743.0,0.00030019]
[1743008475198,0.630989,86744.0,86743.0,0.00030019]
[1743008475426,0.930989,86744.0,86743.0,0.00030019]
[1743008475655,0.307,86744.0,86743.0,0.00030019]
[1743008475891,0.02505999,86744.0,86743.0,0.00030019]
[1743008476388,0.02505999,86744.0,86743.0,0.23086619]
[1743008476628,0.02205999,86744.0,86743.0,0.00030019]
[1743008477091,0.02405999,86744.0,86743.0,0.00030019]
[1743008477309,0.01805999,86744.0,86743.0,0.00030019]
[1743008477773,0.02105999,86744.0,86743.0,0.00030019]
[1743008478176,0.01805999,86744.0,86743.0,0.00030019]
[1743008481384,0.01805999,86744.0,86743.0,0.13286019]
[1743008481833,0.01805999,86744.0,86743.0,0.36342619]
[1743008482267,0.01805999,86744.0,86743.0,0.37495419]
[1743008482523,0.01805999,86744.0,86743.0,0.46459504]
[1743008484611,0.01805999,86744.0,86743.0,0.50999504]
[1743008484863,0.01805999,86744.0,86743.0,1.04075268]
[1743008485386,0.01805999,86744.0,86743.0,1.04275268]
[1743008486524,0.0003386,86756.0,86755.0,0.24206]
[1743008486767,0.0003386,86756.0,86755.0,0.38250085]
[1743008487689,0.0003386,86756.0,86755.0,0.79900085]
[1743008488856,0.0003386,86756.0,86755.0,0.80100085]
[1743008489081,0.0003386,86756.0,86755.0,0.79900085]
[1743008489287,0.0003386,86756.0,86755.0,0.91325849]
[1743008489513,0.0003386,86756.0,86755.0,0.91725849]
[1743008489809,0.0003386,86756.0,86755.0,0.91325849]
[1743008490059,0.0003386,86756.0,86755.0,0.91725849]
[1743008490576,0.0003386,86756.0,86755.0,0.92125849]
[1743008490800,0.0003386,86756.0,86755.0,0.5504]
[1743008491023,0.0003386,86756.0,86755.0,0.4245]
[1743008491475,0.0003386,86756.0,86755.0,0.655034]
[1743008491720,0.0003386,86756.0,86755.0,0.4205]
[1743008491946,0.2923162,86769.0,86755.0,0.4165]
[1743008492181,0.75432,86768.0,86755.0,0.4205]
[1743008492432,0.554727,86768.0,86755.0,0.4195]
[1743008492677,0.2923162,86769.0,86761.0,0.230518]
[1743008492927,0.0003394,86773.0,86762.0,0.0494]
[1743008493159,0.0003394,86773.0,86762.0,0.279914]
[1743008493398,0.003,86769.0,86762.0,0.0494]
[1743008493641,0.003,86769.0,86761.0,0.5988]
[1743008493642,0.601819,86768.0,86761.0,0.5988]
[1743008493889,0.3,86771.0,86761.0,0.5988]
[1743008494129,0.3,86769.0,86761.0,0.5988]
[1743008495181,0.001,86769.0,86761.0,0.5988]
[1743008495555,0.003,86769.0,86761.0,0.5988]
[1743008496390,0.003,86769.0,86763.0,0.011525]
[1743008496597,0.003,86769.0,86764.0,0.011525]
[1743008496820,0.003,86769.0,86764.0,0.230507]
[1743008497007,0.003,86769.0,86766.0,0.230503]
[1743008497302,0.003,86769.0,86768.0,0.242023]
[1743008497549,0.001,86769.0,86768.0,0.320823]
[1743008498021,0.001,86769.0,86768.0,0.309299]
[1743008498257,0.0003394,86773.0,86769.0,0.230496]
[1743008498508,0.0003394,86773.0,86768.0,0.1272]
[1743008498754,0.0003384,86769.0,86768.0,0.1272]
[1743008499008,0.0023384,86769.0,86768.0,0.51818858]
[1743008499256,0.0023384,86769.0,86768.0,0.63114149]
[1743008499511,0.0023384,86769.0,86768.0,0.63014149]
[1743008499736,0.0003384,86769.0,86768.0,0.63014149]
[1743008499977,0.0003384,86769.0,86768.0,0.51588385]
[1743008500228,0.0003384,86769.0,86768.0,0.93238385]
[1743008500902,0.0003384,86769.0,86768.0,0.93438385]
[1743008501172,0.01839042,86769.0,86768.0,0.93438385]
[1743008501641,0.0003384,86769.0,86768.0,0.93638385]
[1743008501903,0.0003384,86769.0,86768.0,0.93438385]
[1743008502136,0.0003384,86769.0,86768.0,0.93838385]
[1743008502375,0.0003384,86769.0,86768.0,0.69660085]
[1743008502613,0.0003384,86769.0,86768.0,0.69460085]
[1743008502847,0.0003384,86769.0,86768.0,0.69760085]
[1743008503368,0.0003384,86769.0,86768.0,0.4205]
[1743008503656,0.0003384,86769.0,86761.0,0.5988]
[1743008503842,0.0003384,86769.0,86768.0,0.002]
[1743008504739,0.0003384,86769.0,86768.0,0.004]
[1743008504957,0.01839248,86769.0,86768.0,0.004]
[1743008505165,0.01839248,86769.0,86768.0,0.002]
[1743008505580,0.01839248,86769.0,86768.0,0.004]
[1743008505817,0.01839248,86769.0,86768.0,0.002]
[1743008506821,0.01839248,86769.0,86768.0,0.232499]
[1743008507104,0.01839248,86769.0,86768.0,0.80499968]
[1743008507340,0.01839248,86769.0,86768.0,0.81954053]
[1743008509759,0.01839248,86769.0,86768.0,0.81970973]
[1743008509972,0.01839248,86769.0,86768.0,0.80343305]
[1743008510549,0.0003384,86769.0,86768.0,0.80343305]
[1743008510779,0.01838995,86769.0,86768.0,0.80343305]
[1743008512718,0.0003384,86769.0,86768.0,0.80343305]
[1743008514773,0.0003384,86769.0,86768.0,0.5468692]
[1743008515714,0.01839096,86769.0,86768.0,0.5468692]
[1743008517730,0.01839096,86769.0,86768.0,0.4206692]
[1743008518185,0.01839096,86769.0,86768.0,0.0041692]
[1743008519410,0.31839096,86769.0,86768.0,0.0041692]
[1743008519664,0.45047096,86769.0,86768.0,0.0041692]
[1743008519936,5.45547096,86769.0,86768.0,0.0041692]
[1743008520425,5.68596796,86769.0,86768.0,0.0021692]
[1743008521163,0.005,86758.0,86743.0,0.00030019]
[1743008521408,0.305,86756.0,86743.0,0.00030019]
[1743008521625,5.329,86756.0,86743.0,0.00030019]
[1743008522059,5.34706164,86756.0,86743.0,0.00030019]
[1743008522813,5.329,86756.0,86743.0,0.00030019]
[1743008523259,5.334,86756.0,86743.0,0.00030019]
[1743008523444,5.3276,86756.0,86743.0,0.00030019]
[1743008523907,5.339126,86756.0,86743.0,0.00030019]
[1743008524616,5.3276,86756.0,86743.0,0.00030019]
[1743008524863,5.339126,86756.0,86743.0,0.00030019]
[1743008525357,5.344126,86756.0,86743.0,0.00030019]
[1743008525843,5.38718825,86756.0,86743.0,0.00030019]
[1743008526069,5.38218825,86756.0,86743.0,0.00030019]
[1743008526541,5.37718825,86756.0,86743.0,0.00030019]
[1743008526544,5.4396204,86756.0,86743.0,0.00030019]
[1743008526763,5.4446204,86756.0,86743.0,0.00030019]
[1743008527223,5.46156125,86756.0,86743.0,0.00030019]
[1743008527462,0.542091,86744.0,86743.0,0.00030019]
[1743008527695,6.115951,86744.0,86743.0,0.00030019]
[1743008528403,6.13401612,86744.0,86743.0,0.00030019]
[1743008529136,6.13901612,86744.0,86743.0,0.00030019]
[1743008529369,6.20144827,86744.0,86743.0,0.00030019]
[1743008530286,6.20644827,86744.0,86743.0,0.00030019]
[1743008530725,6.14401612,86744.0,86743.0,0.00030019]
[1743008530944,6.13901612,86744.0,86743.0,0.00030019]
[1743008531395,6.14401612,86744.0,86743.0,0.00030019]
[1743008531651,1.17869912,86744.0,86743.0,0.00030019]
[1743008531863,6.17369912,86744.0,86743.0,0.00030019]
[1743008532079,6.17869912,86744.0,86743.0,0.00030019]
[1743008532766,6.160634,86744.0,86743.0,0.00030019]
[1743008533443,6.028074,86744.0,86743.0,0.00030019]
[1743008533699,4.84687,86744.0,86743.0,0.00030019]
[1743008533951,4.54687,86744.0,86743.0,0.00030019]
[1743008534189,2.647373,86744.0,86743.0,0.00030019]
[1743008534423,2.947373,86744.0,86743.0,0.00030019]
[1743008534630,0.414527,86744.0,86743.0,0.00030019]
[1743008535144,0.409527,86744.0,86743.0,0.00030019]
[1743008535397,0.317464,86744.0,86743.0,0.00030019]
[1743008535642,0.312464,86744.0,86743.0,0.00030019]
[1743008535860,0.33552555,86744.0,86743.0,0.00030019]
[1743008536097,0.33052555,86744.0,86743.0,0.00030019]
[1743008536606,0.32952555,86744.0,86743.0,0.00030019]
[1743008537047,0.33452555,86744.0,86743.0,0.00030019]
[1743008538222,0.63452555,86744.0,86743.0,0.00030019]
[1743008539124,0.86508855,86744.0,86743.0,0.00030019]
[1743008539363,0.87661655,86744.0,86743.0,0.00030019]
[1743008539789,0.91129455,86744.0,86743.0,0.00030019]
[1743008540416,0.89976655,86744.0,86743.0,0.00030019]
[1743008540647,0.66920355,86744.0,86743.0,0.00030019]
[1743008541123,0.89976655,86744.0,86743.0,0.00030019]
[1743008541327,0.91129455,86744.0,86743.0,0.00030019]
[1743008542784,0.893233,86744.0,86743.0,0.00030019]
[1743008543379,0.881705,86744.0,86743.0,0.00030019]
[1743008543621,0.893233,86744.0,86743.0,0.00030019]
[1743008544612,0.881705,86744.0,86743.0,0.00030019]
[1743008544884,0.651142,86744.0,86743.0,0.00030019]
[1743008545115,0.748784,86744.0,86743.0,0.00030019]